lending/lending_fUSD_20250130
["ID","MTS","AMOUNT","RATE_DAILY","PERIOD"]
[350966328,1738252275691,-745.17,0.00021369,4]
[350966329,1738252275700,-151.0,0.00021369,2]
[350966330,1738252275710,-500.0,0.00021369,4]
[350966331,1738252275720,-500.0,0.00021369,4]
[350966332,1738252275730,-745.17,0.00021369,4]
[350966333,1738252275741,-500.0,0.00021369,4]
[350966334,1738252275751,-151.0,0.00021369,2]
[350966335,1738252275761,-500.0,0.00021369,4]
[350966336,1738252275771,-745.17,0.00021369,4]
[350966337,1738252275782,-500.0,0.00021369,4]
[350966338,1738252275791,-500.0,0.00021369,4]
[350966339,1738252275801,-745.40829204,0.00021369,4]
[350966340,1738252275812,-151.0,0.00021369,2]
[350966341,1738252275823,-500.0,0.00021369,4]
[350966342,1738252275833,-500.0,0.00021369,4]
[350966343,1738252275843,-500.0,0.00021369,4]
[350966344,1738252275854,-500.0,0.00021369,4]
[350966345,1738252275864,-500.0,0.00021369,4]
[350966346,1738252275874,-500.0,0.00021369,4]
[350966347,1738252275884,-151.0,0.00021369,2]
[350966348,1738252275895,-500.0,0.00021369,4]
[350966349,1738252275906,-500.0,0.00021369,4]
[350966350,1738252275916,-500.0,0.00021369,4]
[350966351,1738252275926,-500.0,0.00021369,4]
[350966352,1738252275936,-151.0,0.00021369,2]
[350966353,1738252275946,-500.0,0.00021369,4]
[350966354,1738252275956,-500.0,0.00021369,4]
[350966355,1738252275966,-500.0,0.00021369,4]
[350966356,1738252275976,-500.0,0.00021369,4]
[350966357,1738252275987,-151.0,0.00021369,2]
[350966358,1738252275997,-500.0,0.00021369,4]
[350966359,1738252276007,-505.90959443,0.00021369,4]
[350966360,1738252276018,-500.0,0.00021369,4]
[350966361,1738252276029,-500.0,0.00021369,4]
[350966362,1738252276039,-151.0,0.00021369,2]
[350966363,1738252276049,-500.0,0.00021369,4]
[350966364,1738252276060,-500.0,0.00021369,4]
[350966365,1738252276073,-500.0,0.00021369,4]
[350966366,1738252276083,-500.0,0.00021369,4]
[350966367,1738252276093,-500.0,0.00021369,4]
[350966368,1738252276103,-500.0,0.00021369,4]
[350966369,1738252276114,-500.0,0.00021369,4]
[350966370,1738252276125,-500.0,0.00021369,4]
[350966371,1738252276135,-500.0,0.00021369,4]
[350966372,1738252276146,-500.0,0.00021369,4]
[350966373,1738252276157,-213.358575,0.00021369,2]
[350966374,1738252276167,-500.0,0.00021369,4]
[350966375,1738252276178,-500.0,0.00021369,4]
[350966376,1738252276188,-503.54487273,0.00021369,4]
[350966377,1738252276198,-500.0,0.00021369,4]
[350966378,1738252276208,-500.0,0.00021369,4]
[350966379,1738252276219,-500.0,0.00021369,4]
[350966380,1738252276230,-500.0,0.00021369,4]
[350966381,1738252276240,-500.0,0.00021369,4]
[350966382,1738252276251,-512.29550536,0.00021369,4]
[350966383,1738252276260,-500.0,0.00021369,4]
[350966384,1738252276270,-151.0,0.00021369,2]
[350966385,1738252276281,-500.0,0.00021369,4]
[350966386,1738252276290,-500.0,0.00021369,4]
[350966387,1738252276300,-500.0,0.00021369,4]
[350966388,1738252276310,-151.0,0.00021369,2]
[350966389,1738252276321,-500.0,0.00021369,4]
[350966390,1738252276331,-500.0,0.00021369,4]
[350966391,1738252276341,-500.0,0.00021369,4]
[350966392,1738252276351,-500.0,0.00021369,4]
[350966393,1738252276361,-151.0,0.00021369,2]
[350966394,1738252276371,-500.0,0.00021369,4]
[350966395,1738252276381,-500.0,0.00021369,4]
[350966396,1738252276390,-151.0,0.00021369,2]
[350966397,1738252276401,-500.0,0.00021369,4]
[350966398,1738252276410,-500.0,0.00021369,4]
[350966399,1738252276420,-500.0,0.00021369,4]
[350966400,1738252276430,-500.0,0.00021369,4]
[350966401,1738252276441,-500.0,0.00021369,4]
[350966402,1738252276451,-622.57152604,0.00021369,4]
[350966403,1738252276460,-151.0,0.00021369,2]
[350966404,1738252276472,-421.49925327,0.00021369,4]
[350966405,1738252276482,-289.73294597,0.00021369,4]
[350966406,1738252276492,-500.0,0.00021369,4]
[350966407,1738252276502,-500.0,0.00021369,4]
[350966408,1738252276512,-151.0,0.00021369,2]
[350966409,1738252276524,-151.0,0.00021369,2]
[350966410,1738252276535,-500.0,0.00021369,4]
[350966411,1738252276546,-500.0,0.00021369,4]
[350966412,1738252276560,-500.0,0.00021369,4]
[350966413,1738252276572,-151.0,0.00021369,2]
[350966414,1738252276582,-151.0,0.00021369,2]
[350966415,1738252276592,-500.0,0.00021369,4]
[350966416,1738252276603,-151.0,0.00021369,2]
[350966417,1738252276614,-500.0,0.00021369,4]
[350966418,1738252276623,-240.473582,0.00021369,2]
[350966419,1738252276634,-500.0,0.00021369,4]
[350966420,1738252276644,-151.0,0.00021369,2]
[350966421,1738252276656,-500.0,0.00021369,4]
[350966422,1738252276666,-151.0,0.00021369,2]
[350966423,1738252276677,-500.0,0.00021369,4]
[350966424,1738252276686,-151.0,0.00021369,2]
[350966425,1738252276696,-311.01874599,0.00021369,4]
[350966426,1738252276707,-500.0,0.00021369,4]
[350966427,1738252276716,-500.0,0.00021369,4]
[350966428,1738252276726,-151.0,0.00021369,2]
[350966429,1738252276736,-163.13033152,0.00021369,4]
[350966430,1738252276746,-151.0,0.00021369,2]
[350966431,1738252276755,-500.0,0.00021369,4]
[350966432,1738252276766,-500.0,0.00021369,4]
[350966433,1738252276775,-500.0,0.00021369,4]
[350966434,1738252276785,-151.0,0.00021369,2]
[350966435,1738252276794,-500.0,0.00021369,4]
[350966436,1738252276804,-500.0,0.00021369,4]
[350966437,1738252276813,-500.0,0.00021369,4]
[350966438,1738252276823,-575.09452199,0.00021369,4]
[350966439,1738252276834,-151.0,0.00021369,2]
[350966440,1738252276844,-500.0,0.00021369,4]
[350966441,1738252276855,-500.0,0.00021369,4]
[350966442,1738252276864,-151.0,0.00021369,2]
[350966443,1738252276875,-500.0,0.00021369,4]
[350966444,1738252276948,-500.0,0.00021369,4]
[350966445,1738252276960,-151.0,0.00021369,2]
[350966446,1738252276969,-500.0,0.00021369,4]
[350966447,1738252276979,-151.0,0.00021369,2]
[350966448,1738252276990,-159.326527,0.00021369,2]
[350966449,1738252277001,-408.62221144,0.00021369,4]
[350966450,1738252277011,-151.0,0.00021369,2]
[350966451,1738252277023,-159.326527,0.00021369,2]
[350966452,1738252277034,-151.0,0.00021369,2]
[350966453,1738252277044,-159.326527,0.00021369,2]
[350966454,1738252277059,-268.82079,0.00021369,2]
[350966455,1738252277072,-159.326527,0.00021369,2]
[350966456,1738252277085,-500.0,0.00021369,4]
[350966457,1738252277095,-500.0,0.00021369,4]
[350966458,1738252277107,-159.326527,0.00021369,2]
[350966459,1738252277117,-507.58825112,0.00021369,4]
[350966460,1738252277129,-500.0,0.00021369,4]
[350966461,1738252277139,-159.326527,0.00021369,2]
[350966462,1738252277149,-500.0,0.00021369,4]
[350966463,1738252277159,-159.326527,0.00021369,2]
[350966464,1738252277169,-500.0,0.00021369,4]
[350966465,1738252277179,-500.0,0.00021369,4]
[350966466,1738252277189,-159.326527,0.00021369,2]
[350966467,1738252277200,-500.0,0.00021369,4]
[350966468,1738252277210,-500.0,0.00021369,4]
[350966469,1738252277220,-159.326527,0.00021369,2]
[350966470,1738252277230,-500.0,0.00021369,4]
[350966471,1738252277240,-500.0,0.00021369,4]
[350966472,1738252277251,-500.0,0.00021369,4]
[350966473,1738252277261,-275.48905974,0.00021369,4]
[350966474,1738252277272,-500.0,0.00021369,4]
[350966475,1738252277282,-500.0,0.00021369,4]
[350966476,1738252277292,-500.0,0.00021369,4]
[350966477,1738252277302,-500.0,0.00021369,4]
[350966478,1738252277312,-159.326527,0.00021369,2]
[350966479,1738252277325,-500.0,0.00021369,4]
[350966480,1738252277335,-500.0,0.00021369,4]
[350966481,1738252277345,-159.326527,0.00021369,2]
[350966482,1738252277354,-500.0,0.00021369,4]
[350966483,1738252277364,-159.326527,0.00021369,2]
[350966484,1738252277374,-500.0,0.00021369,4]
[350966485,1738252277384,-150.69748598,0.00021369,4]
[350966486,1738252277393,-500.0,0.00021369,4]
[350966487,1738252277403,-159.326527,0.00021369,2]
[350966488,1738252277413,-159.326527,0.00021369,2]
[350966489,1738252277423,-500.0,0.00021369,4]
[350966490,1738252277433,-500.0,0.00021369,4]
[350966491,1738252277442,-159.326527,0.00021369,2]
[350966492,1738252277452,-500.0,0.00021369,4]
[350966493,1738252277461,-159.326527,0.00021369,2]
[350966494,1738252277471,-500.0,0.00021369,4]
[350966495,1738252277481,-500.0,0.00021369,4]
[350966496,1738252277491,-159.326527,0.00021369,2]
[350966497,1738252277500,-500.0,0.00021369,4]
[350966498,1738252277511,-535.37561329,0.00021369,4]
[350966499,1738252277520,-151.0,0.00021369,2]
[350966500,1738252277532,-159.326531,0.00021369,2]
[350966501,1738252277542,-500.0,0.00021369,4]
[350966502,1738252277551,-151.0,0.00021369,2]
[350966503,1738252277566,-500.0,0.00021369,4]
[350966504,1738252277576,-500.0,0.00021369,4]
[350966505,1738252277586,-500.0,0.00021369,4]
[350966506,1738252277596,-151.0,0.00021369,2]
[350966507,1738252277606,-500.0,0.00021369,4]
[350966508,1738252277618,-500.0,0.00021369,4]
[350966509,1738252277628,-500.0,0.00021369,4]
[350966510,1738252277640,-500.0,0.00021369,4]
[350966511,1738252277649,-500.0,0.00021369,4]
[350966512,1738252277659,-151.0,0.00021369,2]
[350966513,1738252277669,-500.0,0.00021369,4]
[350966514,1738252277678,-504.85520059,0.00021369,4]
[350966515,1738252277688,-500.0,0.00021369,4]
[350966516,1738252277699,-500.0,0.00021369,4]
[350966517,1738252277711,-500.0,0.00021369,4]
[350966518,1738252277733,-500.0,0.00021369,4]
[350966519,1738252277745,-151.0,0.00021369,2]
[350966520,1738252277756,-500.0,0.00021369,4]
[350966521,1738252277767,-500.0,0.00021369,4]
[350966522,1738252277778,-500.0,0.00021369,4]
[350966523,1738252277788,-500.0,0.00021369,4]
[350966524,1738252277799,-151.0,0.00021369,2]
[350966525,1738252277810,-500.0,0.00021369,4]
[350966526,1738252277824,-500.0,0.00021369,4]
[350966527,1738252277835,-500.0,0.00021369,4]
[350966528,1738252277845,-500.0,0.00021369,4]
[350966529,1738252277856,-500.0,0.00021369,4]
[350966530,1738252277867,-500.0,0.00021369,4]
[350966531,1738252277878,-500.0,0.00021369,4]
[350966532,1738252277888,-638.52007918,0.00021369,4]
[350966533,1738252277898,-151.0,0.00021369,2]
[350966534,1738252277908,-500.0,0.00021369,4]
[350966535,1738252277918,-500.0,0.00021369,4]
[350966536,1738252277929,-468.69202023,0.00021369,4]
[350966537,1738252277939,-151.0,0.00021369,2]
[350966538,1738252277949,-500.0,0.00021369,4]
[350966539,1738252277960,-500.0,0.00021369,4]
[350966540,1738252277971,-500.0,0.00021369,4]
[350966541,1738252277982,-151.0,0.00021369,2]
[350966542,1738252277993,-586.54078703,0.00021369,4]
[350966543,1738252278003,-500.0,0.00021369,4]
[350966544,1738252278015,-500.0,0.00021369,4]
[350966545,1738252278026,-500.0,0.00021369,4]
[350966546,1738252278038,-500.0,0.00021369,4]
[350966547,1738252278049,-500.0,0.00021369,4]
[350966548,1738252278060,-500.0,0.00021369,4]
[350966549,1738252278073,-500.0,0.00021369,4]
[350966550,1738252278084,-500.0,0.00021369,4]
[350966551,1738252278094,-500.0,0.00021369,4]
[350966552,1738252278105,-500.0,0.00021369,4]
[350966553,1738252278116,-807.18,0.00021369,4]
[350966554,1738252278127,-500.0,0.00021369,4]
[350966555,1738252278138,-500.0,0.00021369,4]
[350966556,1738252278149,-516.08711287,0.00021369,4]
[350966557,1738252278161,-807.18,0.00021369,4]
[350966558,1738252278172,-621.84403777,0.00021369,4]
[350966559,1738252278183,-807.18,0.00021369,4]
[350966560,1738252278194,-500.0,0.00021369,4]
[350966561,1738252278205,-500.0,0.00021369,4]
[350966562,1738252278217,-807.18,0.00021369,4]
[350966563,1738252278228,-500.0,0.00021369,4]
[350966564,1738252278239,-500.0,0.00021369,4]
[350966565,1738252278256,-807.18,0.00021369,4]
[350966566,1738252278269,-500.0,0.00021369,4]
[350966567,1738252278280,-500.0,0.00021369,4]
[350966568,1738252278292,-807.18,0.00021369,4]
[350966569,1738252278303,-500.0,0.00021369,4]
[350966570,1738252278315,-807.18,0.00021369,4]
[350966571,1738252278328,-500.0,0.00021369,4]
[350966572,1738252278339,-419.66409347,0.00021369,4]
[350966573,1738252278351,-807.18,0.00021369,4]
[350966574,1738252278362,-500.0,0.00021369,4]
[350966575,1738252278373,-807.18,0.00021369,4]
[350966576,1738252278384,-500.0,0.00021369,4]
[350966577,1738252278396,-500.48708724,0.00021369,4]
[350966578,1738252278407,-807.18,0.00021369,4]
[350966579,1738252278418,-500.0,0.00021369,4]
[350966580,1738252278428,-807.18,0.00021369,4]
[350966581,1738252278439,-500.0,0.00021369,4]
[350966582,1738252278450,-807.18,0.00021369,4]
[350966583,1738252278460,-508.25551093,0.00021369,4]
[350966584,1738252278470,-807.18,0.00021369,4]
[350966585,1738252278481,-807.18,0.00021369,4]
[350966586,1738252278492,-807.18,0.00021369,4]
[350966587,1738252278503,-807.18,0.00021369,4]
[350966588,1738252278513,-807.18,0.00021369,4]
[350966589,1738252278525,-807.18,0.00021369,4]
[350966590,1738252278536,-500.0,0.00021369,2]
[350966591,1738252278546,-807.18,0.00021369,4]
[350966592,1738252278557,-500.0,0.00021369,2]
[350966593,1738252278573,-807.18,0.00021369,4]
[350966594,1738252278584,-639.38048989,0.00021369,2]
[350966595,1738252278595,-807.18,0.00021369,4]
[350966596,1738252278607,-807.18,0.00021369,4]
[350966597,1738252278617,-807.18,0.00021369,4]
[350966598,1738252278629,-500.0,0.00021369,4]
[350966599,1738252278640,-500.0,0.00021369,4]
[350966600,1738252278653,-807.37841355,0.00021369,4]
[350966601,1738252278665,-500.0,0.00021369,4]
[350966602,1738252278676,-500.0,0.00021369,4]
[350966603,1738252278686,-500.0,0.00021369,4]
[350966604,1738252278696,-500.0,0.00021369,4]
[350966605,1738252278707,-500.0,0.00021369,4]
[350966606,1738252278717,-500.0,0.00021369,4]
[350966607,1738252278727,-500.0,0.00021369,4]
[350966608,1738252278738,-500.0,0.00021369,4]
[350966609,1738252278748,-500.0,0.00021369,4]
[350966610,1738252278759,-500.0,0.00021369,4]
[350966611,1738252278775,-429.70900104,0.00021369,4]
[350966612,1738252280649,-70.29099896,0.00021369,4]
[350966613,1738252280659,-500.0,0.00021369,4]
[350966614,1738252280670,-500.0,0.00021369,4]
[350966615,1738252280680,-368.6479821,0.00021369,4]
[350966616,1738252280695,-131.3520179,0.00021369,4]
[350966617,1738252280705,-500.0,0.00021369,4]
[350966618,1738252280715,-500.0,0.00021369,4]
[350966619,1738252280726,-500.0,0.00021369,4]
[350966620,1738252280737,-500.0,0.00021369,4]
[350966621,1738252280748,-441.10668867,0.00021369,4]
[350966622,1738252280759,-500.0,0.00021369,4]
[350966623,1738252280769,-500.0,0.00021369,4]
[350966624,1738252280779,-500.0,0.00021369,4]
[350966625,1738252280790,-500.0,0.00021369,4]
[350966626,1738252280801,-500.0,0.00021369,4]
[350966627,1738252280811,-500.0,0.00021369,4]
[350966628,1738252280823,-500.0,0.00021369,4]
[350966629,1738252280838,-500.0,0.00021369,4]
[350966630,1738252280848,-500.0,0.00021369,4]
[350966631,1738252280859,-500.0,0.00021369,4]
[350966632,1738252280869,-500.0,0.00021369,4]
[350966633,1738252280879,-500.0,0.00021369,4]
[350966634,1738252280889,-500.0,0.00021369,4]
[350966635,1738252280900,-500.0,0.00021369,4]
[350966636,1738252280910,-500.0,0.00021369,4]
[350966637,1738252280920,-500.0,0.00021369,4]
[350966638,1738252280931,-500.0,0.00021369,4]
[350966639,1738252280941,-500.0,0.00021369,4]
[350966640,1738252280953,-500.0,0.00021369,4]
[350966641,1738252280964,-500.0,0.00021369,4]
[350966642,1738252280976,-500.0,0.00021369,4]
[350966643,1738252280987,-500.0,0.00021369,4]
[350966644,1738252280998,-500.0,0.00021369,4]
[350966645,1738252281009,-500.0,0.00021369,4]
[350966646,1738252281019,-500.0,0.00021369,4]
[350966647,1738252281029,-555.22590359,0.00021369,4]
[350966648,1738252281039,-500.0,0.00021369,4]
[350966649,1738252281049,-500.0,0.00021369,4]
[350966650,1738252281059,-500.0,0.00021369,4]
[350966651,1738252281070,-478.25464834,0.00021369,4]
[350966652,1738252281080,-500.0,0.00021369,4]
[350966653,1738252281091,-500.0,0.00021369,4]
[350966654,1738252281101,-257.3416123,0.00021369,4]
[350966655,1738252281111,-500.0,0.00021369,4]
[350966656,1738252281120,-507.43117192,0.00021369,4]
[350966657,1738252281131,-500.0,0.00021369,4]
[350966658,1738252281141,-667.96,0.00021369,4]
[350966659,1738252281152,-500.0,0.00021369,4]
[350966660,1738252281163,-500.0,0.00021369,4]
[350966661,1738252281174,-667.96,0.00021369,4]
[350966662,1738252281184,-339.7031869,0.00021369,4]
[350966663,1738252281195,-667.96,0.00021369,4]
[350966664,1738252281206,-500.0,0.00021369,4]
[350966665,1738252281216,-525.10039856,0.00021369,4]
[350966666,1738252281227,-511.26747415,0.00021369,4]
[350966667,1738252281237,-667.96,0.00021369,4]
[350966668,1738252281247,-667.96,0.00021369,4]
[350966669,1738252281258,-667.96,0.00021369,4]
[350966670,1738252281268,-500.0,0.00021369,4]
[350966671,1738252281279,-667.96,0.00021369,4]
[350966672,1738252281289,-500.0,0.00021369,4]
[350966673,1738252281300,-354.25377833,0.00021369,4]
[350966674,1738252329020,150.83,0.00010137,2]
[350966679,1738252831755,150.0,0.00022941,120]
[350966680,1738252890881,150.0,0.00022906,120]
[350966681,1738252934470,-630.67,0.00020155,30]
[350966682,1738252934516,-5100.0,0.0002135,32]
[350966683,1738252934543,-5100.0,0.0002135,33]
[350966684,1738252934568,-169.33,0.0002135,34]
[350966686,1738253011198,150.0,0.00022966,120]
[350966687,1738253071380,150.0,0.00022502,120]
[350966689,1738253133520,150.0,0.00022749,120]
[350966692,1738253251072,150.0,0.00022262,120]
[350966693,1738253311056,150.0,0.00021974,120]
[350966694,1738253327176,-4930.67,0.0002135,34]
[350966695,1738253327469,-1000.0,0.00021369,30]
[350966696,1738253327500,-69.33,0.00021369,30]
[350966712,1738253371842,150.0,0.00021188,120]
[350966713,1738253431161,150.0,0.00022587,120]
[350966738,1738253435857,-482.53,0.0001736,2]
[350966740,1738253435868,-150.83,0.00018594,2]
[350966742,1738253435878,-500.0,0.00019164,2]
[350966744,1738253435888,-265.86,0.00019327,2]
[350966747,1738253435911,-164.83035,0.00019425,2]
[350966898,1738253437532,-70.24781933,0.00019425,2]
[350966900,1738253437542,-150.34,0.00019505,2]
[350966902,1738253437552,-261.04,0.00019525,2]
[350966904,1738253437563,-95.93705934,0.0001955,2]
[350966907,1738253437578,-189.70294066,0.0001955,2]
[350966909,1738253437587,-453.55637934,0.00019624,2]
[350966911,1738253437599,-28.97362066,0.00019624,2]
[350966942,1738253437897,-217.3001,0.000199,2]
[350966944,1738253437908,-1000.0,0.00019975,2]
[350966946,1738253437919,-715.83607069,0.0002,10]
[350966948,1738253437931,-438.27,0.00020027,2]
[350966950,1738253437943,-3.62020787,0.00020027,2]
[350966969,1738253438127,-294.47979213,0.00020027,2]
[350966973,1738253438138,-150.0,0.00020027,2]
[350966976,1738253438148,-22.70020787,0.00020027,2]
[350966981,1738253438170,-352.52979213,0.00020027,2]
[350966984,1738253438181,-315.0,0.00020038,2]
[350966986,1738253438192,-300.0,0.00020051,2]
[350966988,1738253438201,-6911.8111,0.00020052,2]
[350966990,1738253438212,-150.0,0.0002007,2]
[350966992,1738253438222,-254.42,0.00020077,2]
[350966994,1738253438232,-5000.0,0.0002014,2]
[350966996,1738253438242,-161.80746257,0.0002014,2]
[350966998,1738253438254,-318.35774728,0.0002014,2]
[350967000,1738253438264,-823.63627923,0.0002014,2]
[350967002,1738253438276,-999.99,0.00020145,2]
[350967004,1738253438286,-16657.01916043,0.00020145,2]
[350967154,1738253439741,-266.88,0.00020145,2]
[350967167,1738253439874,-420.30757999,0.00020145,2]
[350967168,1738253439886,-440.47076,0.00020145,2]
[350967174,1738253439998,-3005.954285,0.00020145,2]
[350967176,1738253440010,-7606.12118806,0.00020145,2]
[350967479,1738253443029,498.0,0.00023,120]
[350967523,1738253443481,-2338.95702652,0.00020145,2]
[350967525,1738253443491,-576.45962166,0.00020145,2]
[350967538,1738253443608,-506.69480044,0.00020145,2]
[350967540,1738253443621,-868.79356671,0.00020145,2]
[350967542,1738253443633,-8048.04201119,0.00020145,2]
[350967544,1738253443642,-3000.4,0.00020145,2]
[350967546,1738253443652,-7024.37,0.00020145,2]
[350967548,1738253443662,-150.99,0.00020145,2]
[350967550,1738253443671,-9999.99,0.00020145,2]
[350967552,1738253443682,-9999.99,0.00020145,2]
[350967554,1738253443693,-1382.95,0.00020145,2]
[350967557,1738253443703,-1708.47,0.00020145,5]
[350967559,1738253443714,-2084.18,0.00020145,2]
[350967561,1738253443723,-150.99,0.00020145,2]
[350967563,1738253443734,-499.99,0.00020145,2]
[350967565,1738253443744,-1516.69,0.00020145,2]
[350967567,1738253443754,-9999.99,0.00020145,2]
[350967569,1738253443767,-161.82954031,0.0002015,2]
[350967571,1738253443778,-16114.5,0.0002019,2]
[350967573,1738253443788,-212509.90441054,0.0002024,2]
[350967576,1738253443801,-594.38198825,0.0002024,2]
[350967580,1738253443835,-42329.8215,0.0002024,2]
[350967583,1738253443856,-76855.30000008,0.0002024,2]
[350967586,1738253443868,-75622.84192,0.0002024,2]
[350967764,1738253445668,-3284.66759338,0.00019482,2]
[350967766,1738253445678,-38810.75546992,0.0002024,2]
[350967769,1738253445691,-2155.4,0.0002024,2]
[350967780,1738253445802,-428.315005,0.0002024,2]
[350967782,1738253445814,-36065.40287469,0.0002024,2]
[350967789,1738253445867,-13052.893553,0.0002024,2]
[350967793,1738253445998,-657.27927126,0.0002024,2]
[350967794,1738253446011,-522.1675965,0.0002024,2]
[350967796,1738253446031,-303.68191874,0.0002024,2]
[350968845,1738253569502,1559.48841307,0.00023,120]
[350968846,1738253610958,150.0,0.00022842,120]
[350968847,1738253671897,150.0,0.00022715,120]
[350968848,1738253731804,150.0,0.0002169,120]
[350968849,1738253818770,246.64,0.00023,120]
[350968850,1738253910763,150.0,0.00022019,120]
[350968851,1738254030751,150.0,0.00022238,120]
[350968852,1738254068069,174.31,0.00010137,2]
[350968854,1738254081889,-599.13,0.00019523,30]
[350968855,1738254081927,-1127.62219071,0.0002135,34]
[350968856,1738254081950,-2273.24780929,0.0002135,35]
[350968857,1738254090861,150.0,0.00022412,120]
[350968859,1738254308157,53250.00000003,0.00012,2]
[350968860,1738254330900,150.0,0.00022098,120]
[350968867,1738254382852,-2826.75219071,0.0002135,35]
[350968868,1738254382876,-673.24780929,0.0002136,30]
[350968870,1738254483147,50623.07354287,0.0001,2]
[350969089,1738254631825,-506.43831331,0.00016,2]
[350969090,1738254631881,-468.53761822,0.00016,2]
[350969091,1738254631996,-73.02406847,0.00016,2]
[350969092,1738254632007,-298.32593153,0.00017156,2]
[350969093,1738254632103,-135.94406847,0.00017156,2]
[350969094,1738254632113,-264.32,0.00018888,2]
[350969095,1738254632123,-405.32,0.00018999,2]
[350969096,1738254632132,-6107.75038159,0.00019,2]
[350969097,1738254632144,-11274.8300241,0.00019,2]
[350969098,1738254632161,-2989.88188064,0.00019,2]
[350969099,1738254632212,-1239.87998082,0.00019,2]
[350969100,1738254632223,-400.0,0.00019164,2]
[350969101,1738254632232,-500.0,0.00019164,2]
[350969102,1738254632242,-150.23,0.00019178,2]
[350969103,1738254632252,-252.57,0.00019192,2]
[350969104,1738254632263,-1000.0,0.00019237,2]
[350969105,1738254632273,-234.92,0.00019304,2]
[350969106,1738254632283,-240.36,0.00019319,2]
[350969107,1738254632293,-6680.43,0.00019401,2]
[350969108,1738254632307,-23336.9572063,0.00019401,2]
[350969109,1738254632321,-434.27,0.0001942,2]
[350969110,1738254632330,-3958.67274945,0.00019482,2]
[350969111,1738254632340,-280.35,0.00019482,2]
[350969112,1738254632351,-264.32,0.00019587,2]
[350969113,1738254632361,-150.0,0.0001959,2]
[350969114,1738254632371,-889.77740293,0.000196,2]
[350969115,1738254632381,-3287.63663196,0.0001961,2]
[350969116,1738254632392,-1037.10875048,0.00019699,5]
[350969117,1738254632401,-71865.69266595,0.000197,2]
[350969118,1738254632426,-802.31557787,0.000197,2]
[350969592,1738254637828,-6305.36144738,0.000197,2]
[350969593,1738254637890,-500.0,0.000197,2]
[350969594,1738254637940,-434.86138246,0.000197,2]
[350969595,1738254637996,-3992.5,0.000197,2]
[350969596,1738254638008,-3395.61564401,0.000197,2]
[350969597,1738254638021,-3931.016471,0.000197,2]
[350969598,1738254638032,-1438.54061176,0.000197,2]
[350969766,1738254639912,-484.42,0.000197,2]
[350969800,1738254640229,-334.81876794,0.000197,2]
[350969807,1738254640283,-522.91188455,0.000197,2]
[350969894,1738254642832,-25811.49999532,0.000197,2]
[350969896,1738254642891,-8018.4944346,0.000197,2]
[350969897,1738254642906,-8399.91251989,0.000197,2]
[350969898,1738254642947,-683.49535241,0.000197,2]
[350969899,1738254643004,-1585.000015,0.000197,2]
[350969900,1738254643111,-1042.2820114,0.000197,2]
[350969914,1738254646158,-623.5438537,0.000197,2]
[350969915,1738254646169,-159.23294858,0.000197,2]
[350969916,1738254646179,-159.49329157,0.000197,2]